Cogmind - Beta 14 *** ADVENTURER MODE // 2024.10.16 @ 18:52:17 Player: Three_crows Result: Destroyed by G-67 Veteran with Field Laser Performance ------------- Evolutions (1) 500 Regions Visited (5) 1000 Robots Destroyed (21) 105 Value Destroyed (531) 531 Prototype IDs (0) 0 Alien Tech Used (0) 0 Bonus (0) 0 TOTAL SCORE: 2136 Bonus ------- None Cogmind --------- Core Integrity 0/400 Matter 300/300 Energy 73/100 System Corruption 0% Temperature Warm (192) Movement Core (350) Ox6 Location -6/Proximity Caves Parts ------- > --- POWER (2) -------- (None) > --- PROPULSION (2) --- (None) > --- UTILITY (3) ------ Large Storage Unit > --- WEAPON (2) ------- (None) > --- INVENTORY (15) --- Aluminum Leg Aluminum Leg Aluminum Leg Aluminum Leg Heat Sink Cooling System 0b10 Decoder Chip [Looter] 0b10 Decoder Chip [Scout] 0b10 Decoder Chip [Skirmisher] Improved Targeting Computer Gatling Laser Enhanced Flamer Peak State ------------ > --- POWER ------------ Improved Deuterium Engine > --- PROPULSION ------- Aluminum Leg Armored Leg > --- UTILITY ---------- Improved Heat Sink Large Storage Unit ECM Suite > --- WEAPON ----------- Particle Gun Plasma Rifle > --- INVENTORY -------- Aluminum Leg Aluminum Leg Aluminum Leg Aluminum Leg Heat Sink Cooling System 0b10 Decoder Chip [Looter] 0b10 Decoder Chip [Scout] 0b10 Decoder Chip [Skirmisher] Improved Targeting Computer Gatling Laser Enhanced Flamer [Rating: 25] Favorites ----------- Power Ion Engine Engine Ion Engine Power Core Light Nuclear Core Propulsion Aluminum Leg Leg Aluminum Leg Utility Large Storage Unit Device ECM Suite Storage Large Storage Unit Weapon Light Assault Rifle Energy Gun Plasma Rifle Ballistic Gun Light Assault Rifle Build | -11 -10 -9 -9 -7 -6 ------- Run | Yrd Mat Mat Min Zio Pro Slots Evolved 2 | . . 2 . . . Power 1 | . . 1 . . . Propulsion . | . . . . . . Utility 1 | . . 1 . . . Weapon . | . . . . . . Parts Attached 21 | 3 2 3 7 . 6 Power 7 | 1 . 1 2 . 3 Engine 5 | 1 . 1 2 . 1 Core 2 | . . . . . 2 Reactor . | . . . . . . Propulsion 4 | . 2 . 1 . 1 Treads . | . . . . . . Leg 4 | . 2 . 1 . 1 Wheel . | . . . . . . Hover . | . . . . . . Flight . | . . . . . . Utility 5 | . . 2 3 . . Device 3 | . . 1 2 . . Storage 2 | . . 1 1 . . Processor . | . . . . . . Hackware . | . . . . . . Protection . | . . . . . . Artifact . | . . . . . . Weapon 5 | 2 . . 1 . 2 Energy Gun 2 | . . . . . 2 Energy Cannon . | . . . . . . Ballistic Gun 3 | 2 . . 1 . . Ballistic Cannon . | . . . . . . Launcher . | . . . . . . Special Weapon . | . . . . . . Impact Weapon . | . . . . . . Slashing Weapon . | . . . . . . Piercing Weapon . | . . . . . . Special Melee Weapon . | . . . . . . Unidentified Prototypes . | . . . . . . Parts Lost 15 | . . . 4 . 11 Power 5 | . . . 2 . 3 Propulsion 3 | . . . 1 . 2 Utility 2 | . . . . . 2 Weapon 5 | . . . 1 . 4 Highest Loss Streak 11 | . . . 4 . 11 To Critical Strikes . | . . . . . . Average Slot Usage (%) 95 | . 49 82 96 100 97 Engine 19 | . 14 22 19 22 12 Core 1 | . . . . . 8 Leg 21 | . 7 22 22 22 21 Device 19 | . . 5 20 22 21 Storage 10 | . . 11 11 11 11 Ballistic Gun 22 | . 28 22 22 22 21 Peak Build Rating 25 | 3 5 8 12 14 25 Average Rating 11 | 2 3 7 9 12 17 On Entrance 7 | . 3 5 8 12 14 Naked Turns . | . . . . . . Heaviest Build 36 | 6 6 17 36 36 36 Greatest Support 26 | 3 20 20 20 20 26 Greatest Overweight (x) 1 | 1 1 . 1 1 1 Average Overweight (x) . | . . . . 1 1 Largest Inventory Capacity 15 | 5 5 8 15 15 15 Average Capacity 13 | 5 5 7 14 15 15 Most Carried 15 | 5 5 4 14 15 15 Average Carried 11 | 4 5 3 7 14 14 Final Capacity 15 | 5 5 8 15 15 15 Final Carried 15 | 5 5 3 14 15 12 Class Distribution -------------------- 63% | Scavenger-Mutant 36% | Mutant Dominant Class ---------------- Mutant | -10/Materials Mutant | -9/Materials Mutant | -9/Mines Scavenger-Mutant | -7/Zion Scavenger-Mutant | -6/Proximity Caves Resources | -11 -10 -9 -9 -7 -6 ----------- Run | Yrd Mat Mat Min Zio Pro Matter Collected 564 | 139 163 . 192 . 70 Remotely . | . . . . . . Salvage Created 671 | . 199 93 259 . 120 Parts 48 | . 14 10 15 . 9 Haulers Intercepted . | . . . . . . Recyclers Shooed . | . . . . . . Parts Field Recycled . | . . . . . . Retrieved Matter . | . . . . . . Parts Self-Destructed 8 | . . . . 1 7 Prevented . | . . . . . . Kills | -11 -10 -9 -9 -7 -6 ------- Run | Yrd Mat Mat Min Zio Pro Combat Hostiles Destroyed 20 | . 5 4 6 . 5 Guns 20 | . 5 4 6 . 5 Classes Destroyed 5 | . 3 1 . . 1 Recycler 1 | . 1 . . . . Drone 1 | . . . . . 1 Swarmer 10 | . 3 3 . . 4 Grunt 8 | . 2 . 6 . . Sentry 1 | . . 1 . . . Best Kill Streak 4 | . 3 3 3 . 4 Combat Bots Only 4 | . 3 3 3 . 4 Max Kills in Single Turn 1 | . 1 1 1 . 1 Gunslinging . | . . . . . . Exploded . | . . . . . . Melee . | . . . . . . Uniques/NPCs Destroyed . | . . . . . . Combat | -11 -10 -9 -9 -7 -6 -------- Run | Yrd Mat Mat Min Zio Pro Hostile Shots Fired 206 | . 23 19 60 . 104 Missed 58 | . 8 4 26 . 20 Damage Taken 1945 | . 134 126 323 . 1362 Core 453 | . 45 38 80 . 290 Absorbed by Shields . | . . . . . . Ignored by Resistances 562 | . 40 39 99 . 384 Core Remaining (%) 91 | 100 82 . . . . Volleys Fired 63 | . 13 8 21 . 21 Largest 2 | . 2 2 2 . 2 Hottest 140 | . 40 40 40 . 140 Shots Fired 125 | . 26 16 42 . 41 Gun 125 | . 26 16 42 . 41 Cannon . | . . . . . . Launcher . | . . . . . . Special . | . . . . . . Kinetic 117 | . 26 16 42 . 33 Thermal 8 | . . . . . 8 Explosive . | . . . . . . Electromagnetic . | . . . . . . Robot Hit Streak 21 | . 21 14 15 . 12 Robot Miss Streak 3 | . . 1 1 . 3 Penetration Max . | . . . . . . Secondary Targets 4 | . 1 2 1 . . Max Gunslinging Chain 1 | . 1 1 1 . . Shots Hit Robots 97 | . 21 14 34 . 28 Core Hits 43 | . 9 6 15 . 13 Critical Kills . | . . . . . . Critical Parts Destroyed . | . . . . . . Critical Strikes . | . . . . . . Melee Attacks . | . . . . . . Impact . | . . . . . . Slashing . | . . . . . . Piercing . | . . . . . . Sneak Attacks . | . . . . . . Combat Hostiles . | . . . . . . Follow-up Attacks . | . . . . . . Damage Inflicted 1120 | . 226 135 393 . 366 Guns 1106 | . 226 135 379 . 366 Cannons . | . . . . . . Explosions . | . . . . . . Melee . | . . . . . . Ramming 14 | . . . 14 . . Kinetic 958 | . 226 135 379 . 218 Thermal 148 | . . . . . 148 Explosive . | . . . . . . Electromagnetic . | . . . . . . Impact . | . . . . . . Slashing . | . . . . . . Piercing . | . . . . . . Highest Corruption . | . . . . . . Average Corruption . | . . . . . . Corruption Purged . | . . . . . . Corruption Blocked . | . . . . . . Overload Shots . | . . . . . . Overflow Damage . | . . . . . . Projectiles . | . . . . . . Explosions . | . . . . . . Melee . | . . . . . . Knockbacks . | . . . . . . Impact . | . . . . . . Kinetic . | . . . . . . Secondary . | . . . . . . Self-Inflicted Damage . | . . . . . . Shots . | . . . . . . Rammed . | . . . . . . Targets Rammed 1 | . . . 1 . . Kicked 1 | . . . 1 . . Crushed . | . . . . . . Highest Temperature 183 | . 15 13 8 . 183 Average Temperature 42 | . 11 4 8 . 87 Received Heat Transfer 432 | . 78 27 237 . 90 Siege Activations . | . . . . . . Robots Corrupted . | . . . . . . Combat Hostiles . | . . . . . . Parts Fried . | . . . . . . Impact Corruptions . | . . . . . . Robots Melted . | . . . . . . Combat Hostiles . | . . . . . . Parts Melted . | . . . . . . Heat Transferred 348 | . . . . . 348 Parts Sabotaged . | . . . . . . Parts Stolen . | . . . . . . Parts Stripped . | . . . . . . Power Chain Reactions . | . . . . . . Alert | -11 -10 -9 -9 -7 -6 ------- Run | Yrd Mat Mat Min Zio Pro Peak Influence 195 | . 140 195 145 . . Initial 64 | . . 50 64 . . Average 59 | . 80 99 51 . . Maximum Alert Level . | . . . . . . Low Security (%) 100 | 100 100 100 100 . . Level 1 . | . . . . . . Level 2 . | . . . . . . Level 3 . | . . . . . . Level 4 . | . . . . . . Level 5 . | . . . . . . High Security . | . . . . . . Max Security . | . . . . . . Squads Dispatched 1 | . . . . . 1 Investigation . | . . . . . . Extermination . | . . . . . . Reinforcement . | . . . . . . Assault 1 | . . . . . 1 Garrison . | . . . . . . Intercept . | . . . . . . Searches Triggered . | . . . . . . Construction Impeded . | . . . . . . Haulers Reinforced . | . . . . . . Active Scanning Responses . | . . . . . . Cargo Convoy Interrupts . | . . . . . . Stealth | -11 -10 -9 -9 -7 -6 --------- Run | Yrd Mat Mat Min Zio Pro Distress Signals 1 | . . 1 . . . Communications Jammed . | . . . . . . Distress Signals . | . . . . . . Times Spotted 38 | . 5 8 6 . 19 Peak Tracking Total 10 | . 3 5 3 . 10 Tactical Retreats 1 | . . . . . 1 Traps | -11 -10 -9 -9 -7 -6 ------- Run | Yrd Mat Mat Min Zio Pro Traps Triggered . | . . . . . . Indirectly . | . . . . . . Trap Hack Attempts . | . . . . . . Triggered . | . . . . . . Disarmed . | . . . . . . Reprogrammed . | . . . . . . Reused . | . . . . . . Traps Extracted . | . . . . . . Installed . | . . . . . . Triggered . | . . . . . . Most Traps Carried 4 | . . . 4 4 . Machines | -11 -10 -9 -9 -7 -6 ---------- Run | Yrd Mat Mat Min Zio Pro Machines Disabled . | . . . . . . Max in Single Turn . | . . . . . . Machines Repaired . | . . . . . . Machines Dismantled . | . . . . . . Machines Sabotaged . | . . . . . . Overloaded Fab Kills . | . . . . . . Hacking | -11 -10 -9 -9 -7 -6 --------- Run | Yrd Mat Mat Min Zio Pro Machines Accessed . | . . . . . . Terminals . | . . . . . . Fabricators . | . . . . . . Repair Stations . | . . . . . . Recycling Units . | . . . . . . Scanalyzers . | . . . . . . Garrison Access . | . . . . . . Total Hacks . | . . . . . . Successful . | . . . . . . Failed . | . . . . . . Catastrophic . | . . . . . . Database Lockouts . | . . . . . . Manual 2 | . . . . 2 . Terminals . | . . . . . . Fabricators . | . . . . . . Repair Stations . | . . . . . . Recycling Units . | . . . . . . Scanalyzers . | . . . . . . Garrison Access . | . . . . . . Terminal Hacks . | . . . . . . Fabricator Hacks . | . . . . . . Repair Station Hacks . | . . . . . . Recycling Unit Hacks . | . . . . . . Scanalyzer . | . . . . . . Garrison Access Hacks . | . . . . . . Unauthorized Hacks . | . . . . . . Terminals . | . . . . . . Fabricators . | . . . . . . Repair Stations . | . . . . . . Recycling Units . | . . . . . . Scanalyzers . | . . . . . . Garrison Access . | . . . . . . Data Cores Recovered . | . . . . . . Used . | . . . . . . Hacking Detections . | . . . . . . Full Trace Events . | . . . . . . Feedback Events . | . . . . . . Feedback Blocked . | . . . . . . Robot Schematics Acquired 3 | . . . . 3 . Robots Built . | . . . . . . Authchips . | . . . . . . Time . | . . . . . . Total Robot Build Rating . | . . . . . . Part Schematics Acquired 14 | . . . . 14 . Parts Built . | . . . . . . Authchips . | . . . . . . Time . | . . . . . . Total Part Build Rating . | . . . . . . Parts Repaired . | . . . . . . Time . | . . . . . . Parts Recycled . | . . . . . . Recycled Matter . | . . . . . . Retrieved Matter . | . . . . . . Retrieved Components . | . . . . . . Parts Scanalyzed . | . . . . . . Part Schematics Acquired . | . . . . . . Parts Damaged . | . . . . . . Bothacking | -11 -10 -9 -9 -7 -6 ------------ Run | Yrd Mat Mat Min Zio Pro Used RIF Installer . | . . . . . . Robots Hacked . | . . . . . . Non-combat . | . . . . . . Combat . | . . . . . . Robot Hacks Applied . | . . . . . . Relay Couplers Released . | . . . . . . Fabnet Peak Effective % . | . . . . . . Robots Rewired . | . . . . . . Allies Hacked . | . . . . . . Hacks Repelled . | . . . . . . Allies | -11 -10 -9 -9 -7 -6 -------- Run | Yrd Mat Mat Min Zio Pro Total Allies . | . . . . . . Largest Group . | . . . . . . Highest-Rated Group . | . . . . . . Highest-Rated Ally . | . . . . . . Total Orders . | . . . . . . Ally Attacks . | . . . . . . Total Damage . | . . . . . . Kills . | . . . . . . Allies Corrupted . | . . . . . . Allies Melted . | . . . . . . Intel | -11 -10 -9 -9 -7 -6 ------- Run | Yrd Mat Mat Min Zio Pro Robot Analysis Total . | . . . . . . Derelict Logs Recovered 3 | . . . 2 1 . Drone Launches . | . . . . . . Drone Recoveries . | . . . . . . Exploration | -11 -10 -9 -9 -7 -6 ------------- Run | Yrd Mat Mat Min Zio Pro Turns Passed 3010 | 52 151 154 779 1375 499 Spaces Moved 1559 | 51 105 107 349 721 226 Core 121 | 51 70 . . . . Treads . | . . . . . . Legs 1438 | . 35 107 349 721 226 Wheels . | . . . . . . Hover . | . . . . . . Flight . | . . . . . . Fastest Speed 50 | 50 100 120 120 190 190 Average Speed 173 | 83 106 120 179 190 190 Slowest Speed 190 | 100 120 120 190 190 190 Overloaded Moves . | . . . . . . Propulsion Burnouts . | . . . . . . Robots Hopped . | . . . . . . Cave-ins Triggered . | . . . . . . Exploration Rate (%) 39 | 3 26 18 75 75 40 Regions Visited 5 Branch Regions 3 Pre-discovered Areas 1 | . . . 1 . . Known Exits Taken . | . . . . . . Unknown Exits Taken 5 | 1 1 1 1 1 . Scrap Searched 6 | . . . 1 2 3 Spaces Dug . | . . . . . . Terrain Destroyed . | . . . . . . Melee . | . . . . . . Projectile . | . . . . . . AOE . | . . . . . . Terrain Rammed . | . . . . . . Walls Destroyed . | . . . . . . Machines Disabled . | . . . . . . Actions | -11 -10 -9 -9 -7 -6 --------- Run | Yrd Mat Mat Min Zio Pro Total 1747 | 58 119 117 460 729 264 Wait 70 | . . . 70 . . Move 1554 | 50 104 106 348 720 226 Hop . | . . . . . . Pick Up 26 | 5 . . 12 5 4 Fast Attach 9 | 3 2 1 3 . . Attach 7 | . . 2 2 . 3 Detach . | . . . . . . Swap 5 | . . . 2 . 3 Drop 12 | . . . 1 4 7 Fire 63 | . 13 8 21 . 21 Melee . | . . . . . . Ram . | . . . . . . Kick 1 | . . . 1 . . Crush . | . . . . . . Escape Stasis . | . . . . . . Rewire . | . . . . . . Trap . | . . . . . . Miscellaneous . | . . . . . . Route ------- -11/Scrapyard -10/Materials (discovered 2 exits: *Mat / [*Min]) -9/Materials -9/Mines -7/Zion -6/Proximity Caves (discovered 1 exit: *Fac) History --------- Turn | Location | Event 22 | -11/Scrapyard | Discovered new exit (range 13) 53 | -11/Scrapyard | Entered Materials 66 | -10/Materials | Discovered new exit (range 14) 189 | -10/Materials | Discovered new exit (range 12) 204 | -10/Materials | Entered another Materials area 204 | -9/Materials | Evolved 2 slots: Power x1, Utility x1 310 | -9/Materials | Build established: Mutant 352 | -9/Materials | Discovered new exit (range 6) 358 | -9/Materials | Entered Mines 370 | -9/Mines | Met a Derelict bent on vengeance 484 | -9/Mines | Found a hidden stash of uninstalled traps 891 | -9/Mines | Learned location of Zion (-7) 1019 | -9/Mines | Lost 4 parts (2p1n1w) 1128 | -9/Mines | A Derelict revealed a hidden shortcut to a safe place 1137 | -9/Mines | Entered Zion 1193 | -7/Zion | Discovered new exit (range 16) 1391 | -7/Zion | Build established: Scavenger-Mutant 1816 | -7/Zion | Learned 12 Factory zone layouts 2218 | -7/Zion | Given A8's code to call for help 2512 | -7/Zion | Entered Proximity Caves 2513 | -6/Proximity Caves | Identified exit to Factory 2754 | -6/Proximity Caves | Found DCF Scrap (12 items) 2905 | -6/Proximity Caves | Spotter reported a threat 2987 | -6/Proximity Caves | Attracted the attention of an 0b10 outpost 2991 | -6/Proximity Caves | Core integrity fell below 50% 3001 | -6/Proximity Caves | Spotter reported a threat 3007 | -6/Proximity Caves | Core integrity fell below 20% 3011 | -6/Proximity Caves | Destroyed by G-67 Veteran with Field Laser Last Messages --------------- L-41 Fighter unfolds itself. M-28 Smith unfolds itself. Ion Engine destroyed. Lgt. Assault Rifle destroyed. N-01 Spotter is scanning... N-01 Spotter sends a signal. ALERT: Unidentified potential threat approaching Complex 0b10. ECM Suite destroyed. Aluminum Leg destroyed. M-28 Smith repairs L-41 Fighter. Slug penetrates L-41 Fighter. L-41 Fighter suffers critical hit (Destroy). L-41 Fighter heat spikes uncontrollably. Imp. Heat Sink destroyed. Imp. Deuterium Engine destroyed. Penetrated by Slug. Plasma Rifle destroyed. Arm. Leg destroyed. Particle Gun destroyed. Map ----- +----------------------------------------------------+ | ?????????????????????????????????????????????????? | | ?????????????????????????????????????????????????? | | ?????????????????????????????????????????????????? | | ?????????????????????????????????????????????????? | | ?????????????????????????????????????????????????? | | ?????????????????????????????????????????????????? | | ?????????????????????????????????????????????????? | | ?????????????????????????????????????????????????? | | ?????????????????????????????????????????????????? | | ?????????????????????????????????????????????????? | | ?????????????????????????????????????????????????? | | ?????????????????????????????????????????????????? | | ??????????????????????????????? #??#?????????????? | | ?????????????????????????????? #""""????????????? | | ?????????????????????????????? # ????????????? | | #?????????????????####??????? #?????????????? | | ##???????????????## ##??###? ??????????????? | | #???????????????# ### ## #????????????????? | | ????????????????# ## #????????????????? | | ??????????######## ### #???????????? | | #?????????# Y ??????????? | | ##????????# ## ##????????????????? | | #????????# ##### ### sg s #????????????????? | | #??###???# ###?# #?# ## #???????????? | | ### #??## ### #?# ll #???????????? | | ### ?## ## #?## @l ## #??????????? | | ## ??# ## #??##ml g #??? ??????????? | | ## ???# ## ##??## % ??< ???????????? | | ### ##### #????# ????????????? | | # #?????# ?????????? | | #??????# ??????????? | | ########## ##???????# ##??????????? | | ###????????## ######?????????########???????????? | | ????????????####?????????????????????????????????? | | ?????????????????????????????????????????????????? | | ?????????????????????????????????????????????????? | | ?????????????????????????????????????????????????? | | ?????????????????????????????????????????????????? | | ?????????????????????????????????????????????????? | | ?????????????????????????????????????????????????? | | ?????????????????????????????????????????????????? | | ?????????????????????????????????????????????????? | | ?????????????????????????????????????????????????? | | ?????????????????????????????????????????????????? | | ?????????????????????????????????????????????????? | | ?????????????????????????????????????????????????? | | ?????????????????????????????????????????????????? | | ?????????????????????????????????????????????????? | | ?????????????????????????????????????????????????? | | | +----------------------------------------------------+ Best States ------------- Heat Dissipation 42 Energy Generation 19 Energy Capacity 400 Matter Stores 300 Matter Capacity 300 Sight Range 16 Terrain Scan Density 10 ECM Strength 1 Resistance: KI 20 Resistance: TH 20 Resistance: EX 20 Resistance: EM 20 Resistance: I 20 Resistance: S 20 Resistance: P 20 Evasion (%) 55 Offensive Hacking 10 Item Schematics ----------------- Phase Cannon | -7/Zion | Archive Adv. ECM Suite | -7/Zion | Archive Imp. Field Recycling Unit | -7/Zion | Archive EM Disruption Field | -7/Zion | Archive Imp. Focal Shield | -7/Zion | Archive Shock Absorption System | -7/Zion | Archive Gravmag System | -7/Zion | Archive Magnetic Acceleration Cannon | -7/Zion | Archive Plasma Cannon | -7/Zion | Archive Fusion Compressor | -7/Zion | Archive Imp. Cooling System | -7/Zion | Archive Lgt. Angular Momentum Engine | -7/Zion | Archive Xenon Bombardment Thruster | -7/Zion | Archive Antigrav System | -7/Zion | Archive Robot Schematics ------------------ H-55 Commando | -7/Zion | Archive B-48 Gladiator | -7/Zion | Archive K-01 Serf | -7/Zion | Archive Fabricated ------------ Nothing Alien Tech Used ----------------- None Achievements -------------- Robot Respite Challenges ------------ None Game ------ Seed DamperLobotomyTearclaws Manual? 0 Play Time 00:20:58 Cumulative 9.1 hours Start 2024.10.16 @ 18:25:28 End 2024.10.16 @ 18:52:17 Sessions 1 Manual Loads 0 Difficulty Adventurer Special Mode None Game No. 19 Rogue 0 Adventurer 19 Explorer 0 Win Type - Total 0 Types 0/0/0/0/0/0/0/0/0 Lore% 7 Gallery% 12 Achievement% 12 Wizard Run 0 Options --------- Layout 1 ASCII 0 Keyboard 0 Movement Mouse Keybinds 0 Fullscreen 1 Font 24/Smallcaps Map View 50x35 Zoom Use 0% Tactical HUD 0 Map Filters NONE Filters NONE Steam 1 RUN: 781d4657-400a-4065-bd01-72c3f3c9c95e